fUSD/lending_fUSD_20250520
["ID","MTS","AMOUNT","RATE_DAILY","PERIOD"]
[361742120,1747746644693,-5469.636629,0.00012,2]
[361742121,1747746644703,-276.000708,0.00012,2]
[361742122,1747746644713,-153.582745,0.00012,2]
[361742123,1747746644722,-5469.636629,0.00012,2]
[361742124,1747746644732,-5469.636629,0.00012,2]
[361742125,1747746644743,-5469.636629,0.00012,2]
[361742126,1747746644754,-151.0,0.00012,2]
[361742127,1747746644764,-151.0,0.00012,2]
[361742128,1747746644775,-151.0,0.00012,2]
[361742129,1747746644785,-151.0,0.00012,2]
[361742130,1747746644795,-151.0,0.00012,2]
[361742131,1747746644804,-151.0,0.00012,2]
[361742132,1747746644814,-2679.106832,0.00012,2]
[361742133,1747746644825,-2679.106832,0.00012,2]
[361742134,1747746644835,-151.0,0.00012,2]
[361742135,1747746644845,-151.0,0.00012,2]
[361742136,1747746644855,-151.0,0.00012,2]
[361742137,1747746644865,-151.0,0.00012,2]
[361742138,1747746644875,-151.0,0.00012,2]
[361742139,1747746644885,-151.0,0.00012,2]
[361742140,1747746644896,-2679.106832,0.00012,2]
[361742141,1747746644906,-2679.106832,0.00012,2]
[361742142,1747746644915,-151.0,0.00012,2]
[361742143,1747746644925,-151.0,0.00012,2]
[361742144,1747746644935,-151.0,0.00012,2]
[361742145,1747746644944,-151.0,0.00012,2]
[361742146,1747746644954,-151.0,0.00012,2]
[361742147,1747746644964,-151.0,0.00012,2]
[361742148,1747746644974,-151.0,0.00012,2]
[361742149,1747746644984,-151.0,0.00012,2]
[361742150,1747746644994,-1265.065694,0.00012,2]
[361742151,1747746645004,-1265.065694,0.00012,2]
[361742152,1747746645014,-1265.065694,0.00012,2]
[361742153,1747746645023,-1265.065694,0.00012,2]
[361742154,1747746645033,-151.0,0.00012,2]
[361742155,1747746645043,-151.0,0.00012,2]
[361742156,1747746645054,-153.100323,0.00012,2]
[361742157,1747746645063,-151.0,0.00012,2]
[361742158,1747746645073,-151.0,0.00012,2]
[361742159,1747746645084,-157.176598,0.00012,2]
[361742160,1747746645095,-491.401494,0.00012,2]
[361742161,1747746645106,-157.176598,0.00012,2]
[361742162,1747746645117,-491.401494,0.00012,2]
[361742163,1747746645126,-157.176598,0.00012,2]
[361742164,1747746645139,-491.401494,0.00012,2]
[361742165,1747746645150,-491.401494,0.00012,2]
[361742166,1747746645160,-157.176598,0.00012,2]
[361742167,1747746645169,-157.176598,0.00012,2]
[361742168,1747746645179,-326.960639,0.00012,2]
[361742169,1747746645189,-157.176598,0.00012,2]
[361742170,1747746645198,-326.960639,0.00012,2]
[361742171,1747746645209,-326.960639,0.00012,2]
[361742172,1747746645219,-326.960639,0.00012,2]
[361742173,1747746645228,-326.960639,0.00012,2]
[361742174,1747746645238,-326.960639,0.00012,2]
[361742175,1747746645249,-151.0,0.00012,2]
[361742176,1747746645259,-151.0,0.00012,2]
[361742177,1747746645269,-151.0,0.00012,2]
[361742178,1747746645279,-151.0,0.00012,2]
[361742179,1747746645288,-151.0,0.00012,2]
[361742180,1747746645299,-151.0,0.00012,2]
[361742181,1747746645308,-151.0,0.00012,2]
[361742182,1747746645320,-151.0,0.00012,2]
[361742185,1747746645715,-151.0,0.00012,2]
[361742186,1747746645752,-151.0,0.00012,2]
[361742187,1747746645762,-151.0,0.00012,2]
[361742188,1747746645772,-151.0,0.00012,2]
[361742189,1747746645782,-182.758502,0.00012,2]
[361742190,1747746645793,-182.758502,0.00012,2]
[361742191,1747746645803,-182.758502,0.00012,2]
[361742192,1747746645813,-182.758502,0.00012,2]
[361742193,1747746645824,-182.758502,0.00012,2]
[361742194,1747746645835,-182.758502,0.00012,2]
[361742195,1747746645845,-151.0,0.00012,2]
[361742196,1747746645855,-151.0,0.00012,2]
[361742197,1747746645866,-151.0,0.00012,2]
[361742198,1747746645875,-151.0,0.00012,2]
[361742199,1747746645887,-151.0,0.00012,2]
[361742200,1747746645897,-151.0,0.00012,2]
[361742201,1747746645907,-200.0,0.00012,2]
[361742202,1747746645917,-151.0,0.00012,2]
[361742203,1747746645927,-151.0,0.00012,2]
[361742204,1747746645937,-151.0,0.00012,2]
[361742205,1747746645948,-289.94356,0.00012,2]
[361742206,1747746645958,-302.380827,0.00012,2]
[361742207,1747746645969,-302.380827,0.00012,2]
[361742208,1747746645979,-302.380827,0.00012,2]
[361742209,1747746645991,-302.380827,0.00012,2]
[361742210,1747746646002,-302.380827,0.00012,2]
[361742211,1747746646015,-302.380827,0.00012,2]
[361742212,1747746646025,-151.0,0.00012,2]
[361742213,1747746646034,-151.0,0.00012,2]
[361742214,1747746646044,-201.511042,0.00012,2]
[361742215,1747746646054,-201.511042,0.00012,2]
[361742216,1747746646063,-209.478288,0.00012,2]
[361742217,1747746646074,-209.478288,0.00012,2]
[361742218,1747746646085,-209.478288,0.00012,2]
[361742219,1747746646095,-209.478288,0.00012,2]
[361742220,1747746646106,-201.511042,0.00012,2]
[361742221,1747746646115,-201.511042,0.00012,2]
[361742222,1747746646125,-151.0,0.00012,2]
[361742223,1747746646135,-151.0,0.00012,2]
[361742224,1747746646145,-196.678098,0.00012,2]
[361742225,1747746646155,-151.0,0.00012,2]
[361742226,1747746646164,-151.0,0.00012,2]
[361742228,1747746646174,-151.0,0.00012,2]
[361742230,1747746646184,-151.0,0.00012,2]
[361742232,1747746646194,-151.0,0.00012,2]
[361742234,1747746646204,-151.0,0.00012,2]
[361742236,1747746646215,-151.0,0.00012,2]
[361742238,1747746646224,-151.0,0.00012,2]
[361742240,1747746646235,-151.0,0.00012,2]
[361742241,1747746646244,-161.81659364,0.00012,2]
[361742242,1747746646255,-225.189495,0.00012,2]
[361742243,1747746646266,-225.189495,0.00012,2]
[361742244,1747746646276,-225.189495,0.00012,2]
[361742245,1747746646287,-225.189495,0.00012,2]
[361742246,1747746646296,-225.189495,0.00012,2]
[361742247,1747746646305,-225.189495,0.00012,2]
[361742248,1747746646315,-151.0,0.00012,2]
[361742249,1747746646324,-151.0,0.00012,2]
[361742250,1747746646333,-151.0,0.00012,2]
[361742251,1747746646343,-151.0,0.00012,2]
[361742252,1747746646352,-151.0,0.00012,2]
[361742253,1747746646362,-151.0,0.00012,2]
[361742254,1747746646371,-788.413271,0.00012,2]
[361742255,1747746646380,-788.413271,0.00012,2]
[361742256,1747746646390,-788.413271,0.00012,2]
[361742257,1747746646399,-788.413271,0.00012,2]
[361742258,1747746646410,-788.413271,0.00012,2]
[361742259,1747746646420,-788.413271,0.00012,2]
[361742260,1747746646430,-151.0,0.00012,2]
[361742261,1747746646441,-834.431131,0.00012,2]
[361742262,1747746646450,-834.431131,0.00012,2]
[361742263,1747746646460,-834.431131,0.00012,2]
[361742264,1747746646470,-834.431131,0.00012,2]
[361742265,1747746646480,-834.431131,0.00012,2]
[361742266,1747746646490,-834.431131,0.00012,2]
[361742267,1747746646499,-151.0,0.00012,2]
[361742268,1747746646508,-151.0,0.00012,2]
[361742269,1747746646521,-151.0,0.00012,2]
[361742270,1747746646531,-589.340236,0.00012,2]
[361742271,1747746646541,-39150.05,0.00012055,2]
[361742272,1747746646551,-151.0,0.00012055,2]
[361742273,1747746646561,-151.0,0.00012055,2]
[361742274,1747746646570,-151.0,0.00012055,2]
[361742275,1747746646594,-151.0,0.00012055,2]
[361742276,1747746646606,-151.0,0.00012055,2]
[361742277,1747746646617,-151.0,0.00012055,2]
[361742278,1747746646627,-151.0,0.00012055,2]
[361742279,1747746646637,-151.0,0.00012055,2]
[361742280,1747746646648,-615.378273,0.00012055,2]
[361742281,1747746646658,-151.0,0.00012055,2]
[361742282,1747746646672,-615.378273,0.00012055,2]
[361742283,1747746646683,-278.494418,0.00012055,2]
[361742284,1747746646694,-151.0,0.00012055,2]
[361742285,1747746646704,-151.0,0.00012055,2]
[361742286,1747746646714,-254.912349,0.00012055,2]
[361742287,1747746646724,-194.626736,0.00012055,2]
[361742288,1747746646734,-151.0,0.00012055,2]
[361742289,1747746646747,-151.0,0.00012055,2]
[361742290,1747746646759,-151.90435,0.00012055,2]
[361742291,1747746646770,-151.0,0.00012055,2]
[361742292,1747746646780,-508.912194,0.00012055,2]
[361742293,1747746646791,-1031.224094,0.00012055,2]
[361742294,1747746646801,-508.912194,0.00012055,2]
[361742295,1747746646812,-1031.224094,0.00012055,2]
[361742296,1747746646822,-276.000708,0.00012055,2]
[361742297,1747746646833,-5469.636629,0.00012055,2]
[361742298,1747746646843,-276.000708,0.00012055,2]
[361742299,1747746646853,-5469.636629,0.00012055,2]
[361742300,1747746646863,-151.0,0.00012055,2]
[361742301,1747746646873,-151.0,0.00012055,2]
[361742302,1747746646884,-151.0,0.00012055,2]
[361742303,1747746646894,-151.0,0.00012055,2]
[361742304,1747746646905,-151.0,0.00012055,2]
[361742305,1747746646915,-151.0,0.00012055,2]
[361742306,1747746646925,-151.0,0.00012055,2]
[361742307,1747746646935,-157.176598,0.00012055,2]
[361742308,1747746646945,-157.176598,0.00012055,2]
[361742309,1747746646956,-326.960639,0.00012055,2]
[361742310,1747746646966,-326.960639,0.00012055,2]
[361742311,1747746646976,-151.0,0.00012055,2]
[361742312,1747746646986,-151.0,0.00012055,2]
[361742313,1747746646996,-151.0,0.00012055,2]
[361742314,1747746647006,-182.758502,0.00012055,2]
[361742315,1747746647016,-182.758502,0.00012055,2]
[361742316,1747746647035,-151.0,0.00012055,2]
[361742317,1747746647045,-151.0,0.00012055,2]
[361742318,1747746647056,-151.0,0.00012055,2]
[361742319,1747746647067,-302.380827,0.00012055,2]
[361742320,1747746647077,-302.380827,0.00012055,2]
[361742321,1747746647088,-201.511042,0.00012055,2]
[361742322,1747746647099,-209.478288,0.00012055,2]
[361742323,1747746647110,-201.511042,0.00012055,2]
[361742324,1747746647120,-209.478288,0.00012055,2]
[361742325,1747746647131,-151.0,0.00012055,2]
[361742326,1747746647141,-151.0,0.00012055,2]
[361742327,1747746647151,-151.0,0.00012055,2]
[361742328,1747746647162,-225.189495,0.00012055,2]
[361742329,1747746647173,-225.189495,0.00012055,2]
[361742330,1747746647184,-151.0,0.00012055,2]
[361742331,1747746647194,-151.0,0.00012055,2]
[361742332,1747746647204,-788.413271,0.00012055,2]
[361742333,1747746647223,-788.413271,0.00012055,2]
[361742334,1747746647234,-834.431131,0.00012055,2]
[361742335,1747746647243,-834.431131,0.00012055,2]
[361742336,1747746647255,-151.0,0.00012055,2]
[361742337,1747746647265,-151.0,0.00012087,2]
[361742338,1747746647276,-151.0,0.00012087,2]
[361742339,1747746647287,-272.832852,0.00012087,2]
[361742340,1747746647299,-272.832852,0.00012087,2]
[361742341,1747746647311,-151.0,0.00012087,2]
[361742342,1747746647323,-151.0,0.00012087,2]
[361742343,1747746647333,-151.0,0.00012087,2]
[361742344,1747746647344,-151.0,0.00012087,2]
[361742345,1747746647355,-151.0,0.00012087,2]
[361742346,1747746647367,-151.0,0.00012087,2]
[361742347,1747746647377,-652.1337,0.00012087,2]
[361742348,1747746647388,-652.1337,0.00012087,2]
[361742349,1747746647398,-151.0,0.00012087,2]
[361742350,1747746647409,-151.0,0.00012087,2]
[361742351,1747746647419,-151.0,0.00012087,2]
[361742352,1747746647430,-151.0,0.00012087,2]
[361742353,1747746647441,-151.0,0.00012087,2]
[361742354,1747746647452,-345.85405,0.00012087,2]
[361742355,1747746647463,-345.85405,0.00012087,2]
[361742356,1747746647480,-151.0,0.00012087,2]
[361742357,1747746647491,-151.0,0.00012087,2]
[361742358,1747746647501,-198.49093,0.00012087,2]
[361742359,1747746647512,-151.0,0.00012087,2]
[361742360,1747746647523,-151.0,0.00012087,2]
[361742361,1747746647533,-151.0,0.00012087,2]
[361742362,1747746647544,-151.0,0.00012087,2]
[361742363,1747746647554,-176.731393,0.00012087,2]
[361742364,1747746647564,-151.0,0.00012087,2]
[361742365,1747746647575,-172.690053,0.00012087,2]
[361742366,1747746647586,-172.690053,0.00012087,2]
[361742367,1747746647597,-151.0,0.00012087,2]
[361742368,1747746647608,-171.346813,0.00012087,2]
[361742369,1747746647619,-171.346813,0.00012087,2]
[361742370,1747746647630,-151.0,0.00012087,2]
[361742371,1747746647641,-180.769346,0.00012087,2]
[361742372,1747746647651,-180.769346,0.00012087,2]
[361742373,1747746647663,-151.0,0.00012087,2]
[361742374,1747746647674,-2679.106832,0.00012087,2]
[361742375,1747746647685,-2679.106832,0.00012087,2]
[361742376,1747746647695,-1265.065694,0.00012087,2]
[361742377,1747746647707,-1265.065694,0.00012087,2]
[361742378,1747746647717,-151.0,0.00012087,2]
[361742379,1747746647729,-491.401494,0.00012087,2]
[361742380,1747746647739,-491.401494,0.00012087,2]
[361742381,1747746647750,-166.83,0.00012219,2]
[361742382,1747746647761,-158.5,0.00012308,2]
[361742383,1747746647772,-1680.0,0.00012355,2]
[361742384,1747746647783,-200.0,0.00012355,2]
[361742385,1747746647800,-200.0,0.00012355,2]
[361742386,1747746647813,-250.0,0.00012355,2]
[361742387,1747746647824,-200.0,0.00012355,2]
[361742388,1747746647834,-250.0,0.00012355,2]
[361742389,1747746647844,-20713.0,0.00012368,2]
[361742390,1747746647854,-466.7376062,0.00012421,2]
[361742391,1747746647865,-1000.0,0.00012421,2]
[361742392,1747746647875,-693.3919763,0.00012441,2]
[361742393,1747746647886,-167.17,0.00012465,2]
[361742394,1747746647897,-180.595311,0.000125,2]
[361742395,1747746647907,-151.0,0.000125,2]
[361742396,1747746647923,-151.0,0.000125,2]
[361742397,1747746647935,-151.0,0.000125,2]
[361742398,1747746647946,-198.49093,0.000125,2]
[361742399,1747746647957,-151.0,0.000125,2]
[361742400,1747746647967,-151.0,0.000125,2]
[361742401,1747746647979,-153.24,0.000125,2]
[361742402,1747746647989,-153.24,0.000125,2]
[361742403,1747746647999,-153.24,0.000125,2]
[361742404,1747746648010,-153.24,0.000125,2]
[361742405,1747746648022,-153.24,0.000125,2]
[361742406,1747746648032,-153.24,0.000125,2]
[361742407,1747746648043,-153.24,0.000125,2]
[361742408,1747746648054,-153.24,0.000125,2]
[361742409,1747746648065,-153.24,0.000125,2]
[361742410,1747746648075,-153.24,0.000125,2]
[361742411,1747746648085,-153.24,0.000125,2]
[361742412,1747746648095,-153.24,0.000125,2]
[361742413,1747746648105,-153.24,0.000125,2]
[361742414,1747746648115,-153.24,0.000125,2]
[361742415,1747746648125,-153.24,0.000125,2]
[361742416,1747746648136,-153.24,0.000125,2]
[361742417,1747746648146,-153.24,0.000125,2]
[361742418,1747746648156,-153.24,0.000125,2]
[361742419,1747746648166,-153.24,0.000125,2]
[361742420,1747746648177,-153.24,0.000125,2]
[361742421,1747746648187,-166.83,0.00012704,2]
[361742422,1747746648197,-205.0,0.00012766,2]
[361742423,1747746648207,-1000.0,0.0001277,2]
[361742424,1747746648216,-255.0,0.00012873,2]
[361742425,1747746648226,-877.17,0.00012877,2]
[361742426,1747746648235,-1000.0,0.00012968,2]
[361742427,1747746648245,-719.04747942,0.00012989,2]
[361742428,1747746648255,-163.6,0.00013,2]
[361742429,1747746648264,-1188.0,0.00013,2]
[361742430,1747746648272,-821.02134133,0.00013,2]
[361742431,1747746648280,-150.0,0.00013025,2]
[361742432,1747746648288,-5567.75026487,0.000131,2]
[361742433,1747746648296,-162.27,0.00013117,2]
[361742434,1747746648304,-215.0738,0.00013162,2]
[361742435,1747746648312,-166.83,0.00013188,2]
[361742436,1747746648321,-156.587,0.00013262,2]
[361742437,1747746648328,-1243.57659104,0.00013262,2]
[361742438,1747746648337,-151.0,0.00013362,2]
[361742439,1747746648346,-151.0,0.00013362,2]
[361742440,1747746648355,-151.0,0.00013362,2]
[361742441,1747746648363,-151.0,0.00013362,2]
[361742442,1747746648370,-251.541423,0.00013362,2]
[361742443,1747746648381,-151.0,0.00013362,2]
[361742444,1747746648390,-151.0,0.00013362,2]
[361742445,1747746648398,-151.0,0.00013362,2]
[361742446,1747746648406,-151.0,0.00013362,2]
[361742447,1747746648416,-151.0,0.00013362,2]
[361742448,1747746648424,-151.0,0.00013362,2]
[361742449,1747746648432,-170.85953,0.00013362,2]
[361742450,1747746648441,-151.0,0.00013362,2]
[361742451,1747746648451,-151.0,0.00013362,2]
[361742452,1747746648462,-151.0,0.00013362,2]
[361742453,1747746648473,-508.912194,0.00013362,2]
[361742454,1747746648483,-508.912194,0.00013362,2]
[361742455,1747746648494,-151.0,0.00013368,2]
[361742456,1747746648504,-163.786737,0.00013368,2]
[361742457,1747746648514,-286.119408,0.00013368,2]
[361742458,1747746648526,-151.0,0.00013368,2]
[361742459,1747746648536,-151.0,0.00013368,2]
[361742460,1747746648546,-151.0,0.00013368,2]
[361742461,1747746648557,-615.378273,0.00013368,2]
[361742462,1747746648569,-615.378273,0.00013368,2]
[361742463,1747746648579,-278.494418,0.00013368,2]
[361742464,1747746648589,-151.0,0.00013368,2]
[361742465,1747746648600,-151.0,0.00013368,2]
[361742466,1747746648611,-245.060436,0.00013368,2]
[361742467,1747746648622,-172.690053,0.00013368,2]
[361742468,1747746648632,-172.690053,0.00013368,2]
[361742469,1747746648642,-171.346813,0.00013368,2]
[361742470,1747746648653,-171.346813,0.00013368,2]
[361742471,1747746648666,-151.0,0.00013368,2]
[361742472,1747746648676,-151.0,0.00013368,2]
[361742473,1747746648687,-180.769346,0.00013368,2]
[361742474,1747746648698,-180.769346,0.00013368,2]
[361742475,1747746648709,-182.436208,0.00013368,2]
[361742476,1747746648720,-1031.224094,0.00013368,2]
[361742477,1747746648731,-1031.224094,0.00013368,2]
[361742478,1747746648741,-276.000708,0.00013368,2]
[361742479,1747746648752,-5469.636629,0.00013368,2]
[361742480,1747746648762,-276.000708,0.00013368,2]
[361742481,1747746648773,-5469.636629,0.00013368,2]
[361742482,1747746648784,-151.0,0.00013368,2]
[361742483,1747746648795,-151.0,0.00013368,2]
[361742484,1747746648805,-151.0,0.00013368,2]
[361742485,1747746648816,-226.35594286,0.00013368,2]
[361742486,1747746648827,-151.0,0.00013368,2]
[361742487,1747746648837,-151.0,0.00013368,2]
[361742488,1747746648848,-173.128457,0.00013368,2]
[361742489,1747746648859,-157.176598,0.00013368,2]
[361742490,1747746648870,-157.176598,0.00013368,2]
[361742491,1747746648881,-326.960639,0.00013368,2]
[361742492,1747746648892,-326.960639,0.00013368,2]
[361742493,1747746648910,-151.0,0.00013368,2]
[361742494,1747746648927,-151.0,0.00013368,2]
[361742495,1747746648937,-151.622339,0.00013368,2]
[361742496,1747746648948,-182.758502,0.00013368,2]
[361742497,1747746648959,-182.758502,0.00013368,2]
[361742498,1747746648969,-151.0,0.00013368,2]
[361742499,1747746648979,-151.0,0.00013368,2]
[361742500,1747746648990,-151.0,0.00013368,2]
[361742501,1747746649000,-302.380827,0.00013368,2]
[361742502,1747746649010,-302.380827,0.00013368,2]
[361742503,1747746649020,-201.511042,0.00013368,2]
[361742504,1747746649030,-209.478288,0.00013368,2]
[361742505,1747746649041,-201.511042,0.00013368,2]
[361742506,1747746649051,-209.478288,0.00013368,2]
[361742507,1747746649062,-151.0,0.00013368,2]
[361742508,1747746649073,-151.0,0.00013368,2]
[361742509,1747746649083,-154.306515,0.00013368,2]
[361742510,1747746649093,-225.189495,0.00013368,2]
[361742511,1747746649103,-225.189495,0.00013368,2]
[361742512,1747746649112,-151.0,0.00013368,2]
[361742513,1747746649122,-151.0,0.00013368,2]
[361742514,1747746649132,-788.413271,0.00013368,2]
[361742515,1747746649142,-788.413271,0.00013368,2]
[361742516,1747746649152,-834.431131,0.00013368,2]
[361742517,1747746649162,-834.431131,0.00013368,2]
[361742518,1747746649172,-151.0,0.00013368,2]
[361742519,1747746649182,-9927.38447863,0.00013368,2]
[361742520,1747746649192,-167.17,0.00013416,2]
[361742521,1747746649202,-745.65223616,0.00013537,2]
[361742522,1747746649212,-151.0,0.00013557,2]
[361742523,1747746649221,-152.778776,0.00013557,2]
[361742524,1747746649231,-2679.106832,0.00013557,2]
[361742525,1747746649241,-2679.106832,0.00013557,2]
[361742526,1747746649252,-1265.065694,0.00013557,2]
[361742527,1747746649262,-1265.065694,0.00013557,2]
[361742528,1747746649271,-151.0,0.00013557,2]
[361742529,1747746649281,-491.401494,0.00013557,2]
[361742530,1747746649291,-491.401494,0.00013557,2]
[361742531,1747746649302,-2351.0,0.00013591,2]
[361742532,1747746649312,-151.0,0.00013609,2]
[361742533,1747746649322,-151.0,0.00013609,2]
[361742534,1747746649332,-898.01,0.00013639,2]
[361742535,1747746649343,-166.83,0.00013672,2]
[361742536,1747746649359,-6280.19,0.00013699,2]
[361742537,1747746649370,-687.86,0.00013699,2]
[361742538,1747746649380,-200.0,0.00013699,2]
[361742539,1747746649390,-151.0,0.00013699,2]
[361742540,1747746649400,-151.0,0.00013699,2]
[361742541,1747746649411,-164.328734,0.00013699,2]
[361742542,1747746649422,-245.977366,0.00013699,2]
[361742543,1747746649432,-245.977366,0.00013699,2]
[361742544,1747746649442,-245.977366,0.00013699,2]
[361742545,1747746649453,-245.977366,0.00013699,2]
[361742546,1747746649463,-245.977366,0.00013699,2]
[361742547,1747746649474,-245.977366,0.00013699,2]
[361742548,1747746649484,-245.977366,0.00013699,2]
[361742549,1747746649494,-245.977366,0.00013699,2]
[361742550,1747746649506,-858.04,0.00013699,2]
[361742551,1747746649518,-500.8753685,0.00013699,2]
[361742552,1747746649528,-508.13190318,0.00013699,2]
[361742553,1747746649538,-500.84651354,0.00013699,2]
[361742554,1747746649548,-501.42007245,0.00013699,2]
[361742555,1747746649558,-500.52322495,0.00013699,2]
[361742556,1747746649569,-500.24630433,0.00013699,2]
[361742557,1747746649580,-500.84911814,0.00013699,2]
[361742558,1747746649590,-501.59182019,0.00013699,2]
[361742559,1747746649601,-151.475593,0.00013699,2]
[361742560,1747746649612,-151.0,0.00013699,2]
[361742561,1747746649622,-151.0,0.00013699,2]
[361742562,1747746649632,-151.0,0.00013699,2]
[361742563,1747746649643,-652.1337,0.00013699,2]
[361742564,1747746649654,-652.1337,0.00013699,2]
[361742565,1747746649665,-151.0,0.00013699,2]
[361742566,1747746649676,-151.0,0.00013699,2]
[361742567,1747746649686,-151.0,0.00013699,2]
[361742568,1747746649696,-345.85405,0.00013699,2]
[361742569,1747746649706,-345.85405,0.00013699,2]
[361742570,1747746649717,-151.0,0.00013699,2]
[361742571,1747746649728,-151.0,0.00013699,2]
[361742572,1747746649738,-151.0,0.00013699,2]
[361742573,1747746649748,-151.0,0.00013699,2]
[361742574,1747746649759,-198.49093,0.00013699,2]
[361742575,1747746649769,-151.0,0.00013699,2]
[361742576,1747746649779,-151.0,0.00013699,2]
[361742577,1747746649795,-151.0,0.00013699,2]
[361742578,1747746649806,-151.0,0.00013699,2]
[361742579,1747746649817,-151.0,0.00013699,2]
[361742580,1747746649827,-151.0,0.00013699,2]
[361742581,1747746649838,-151.0,0.00013699,2]
[361742582,1747746649848,-615.378273,0.00013699,2]
[361742583,1747746649858,-151.0,0.00013699,2]
[361742584,1747746649869,-615.378273,0.00013699,2]
[361742585,1747746649880,-278.494418,0.00013699,2]
[361742586,1747746649891,-152.723447,0.00013699,2]
[361742587,1747746649903,-151.0,0.00013699,2]
[361742588,1747746649913,-151.0,0.00013699,2]
[361742589,1747746649923,-151.0,0.00013699,2]
[361742590,1747746649935,-172.690053,0.00013699,2]
[361742591,1747746649945,-172.690053,0.00013699,2]
[361742592,1747746649955,-151.0,0.00013699,2]
[361742593,1747746649967,-171.346813,0.00013699,2]
[361742594,1747746649977,-171.346813,0.00013699,2]
[361742595,1747746649989,-169.4081,0.00013699,2]
[361742596,1747746649999,-151.0,0.00013699,2]
[361742597,1747746650011,-180.769346,0.00013699,2]
[361742598,1747746650022,-180.769346,0.00013699,2]
[361742599,1747746650034,-508.912194,0.00013699,2]
[361742600,1747746650046,-508.912194,0.00013699,2]
[361742601,1747746650059,-1031.224094,0.00013699,2]
[361742602,1747746650069,-1031.224094,0.00013699,2]
[361742603,1747746650081,-276.000708,0.00013699,2]
[361742604,1747746650094,-5469.636629,0.00013699,2]
[361742605,1747746650105,-276.000708,0.00013699,2]
[361742606,1747746650117,-5469.636629,0.00013699,2]
[361742607,1747746650646,-500.0,0.00013699,2]
[361742608,1747746650674,-500.0,0.00013699,2]
[361742609,1747746650685,-500.0,0.00013699,2]
[361742610,1747746650696,-430.49087981,0.00013699,2]
[361742611,1747746650706,-500.0,0.00013699,2]
[361742612,1747746650719,-500.0,0.00013699,2]
[361742613,1747746650730,-500.0,0.00013699,2]
[361742614,1747746650740,-496.0741411,0.00013699,2]
[361742615,1747746650752,-500.0,0.00013699,2]
[361742616,1747746650762,-500.0,0.00013699,2]
[361742617,1747746650772,-500.0,0.00013699,2]
[361742618,1747746650782,-349.33713347,0.00013699,2]
[361742619,1747746650792,-500.0,0.00013699,2]
[361742620,1747746650802,-500.0,0.00013699,2]
[361742621,1747746650812,-500.0,0.00013699,2]
[361742622,1747746650824,-500.0,0.00013699,2]
[361742623,1747746650834,-500.0,0.00013699,2]
[361742624,1747746650845,-500.0,0.00013699,2]
[361742625,1747746650855,-500.0,0.00013699,2]
[361742626,1747746650865,-500.0,0.00013699,2]
[361742627,1747746650875,-500.0,0.00013699,2]
[361742628,1747746650885,-500.0,0.00013699,2]